bitfinex/quotes_SOLUSD_20230120
["timestamp","ask_amount","ask_price","bid_price","bid_amount"]
[1674237397641,113.7695,22.429,22.384,10.0]
[1674237397642,33.48,22.41,22.385,17.96]
[1674237397826,33.48,22.41,22.385,55.54791566]
[1674237398041,33.47,22.414,22.387,135.5]
[1674237398270,108.4395,22.42,22.386,27.58791566]
[1674237398271,33.46,22.418,22.389,6.76453917]
[1674237398479,108.4395,22.42,22.39,20.0]
[1674237398480,33.47,22.416,22.39,20.0]
[1674237398696,33.46,22.422,22.39,251.31997726]
[1674237398876,33.45,22.424,22.393,10.0]
[1674237399091,33.45,22.424,22.395,4.13835933]
[1674237399310,33.45,22.424,22.396,17.96]
[1674237399511,33.45,22.424,22.398,10.0]
[1674237399721,33.45,22.424,22.399,43.83540862]
[1674237399934,33.45,22.424,22.4,10.0]
[1674237400137,33.45,22.429,22.401,0.96]
[1674237400474,10.0,22.43,22.402,9.84093957]
[1674237400669,10.0,22.432,22.404,16.72428751]
[1674237400882,33.44,22.435,22.411,10.0]
[1674237401104,43.43,22.438,22.412,17.96]
[1674237401308,43.43,22.438,22.413,20.0]
[1674237401510,10.0,22.437,22.414,17.96]
[1674237401723,10.0,22.437,22.415,20.0]
[1674237401931,10.0,22.437,22.416,17.96]
[1674237402373,33.44,22.433,22.417,20.0]
[1674237402584,33.44,22.433,22.418,17.0]
[1674237402789,10.0,22.432,22.418,17.0]
[1674237402993,33.44,22.431,22.418,17.0]
[1674237403317,10.0,22.43,22.418,17.0]
[1674237404053,33.45,22.429,22.4,37.03]
[1674237404238,10.0,22.428,22.4,10.0]
[1674237404449,33.45,22.427,22.407,17.58791566]
[1674237405004,10.0,22.428,22.407,17.58791566]
[1674237405314,10.0,22.428,22.403,33.1020616]
[1674237405502,10.0,22.428,22.406,6.40588268]
[1674237405707,10.0,22.428,22.408,10.0]
[1674237405917,10.0,22.428,22.41,10.0]
[1674237406134,10.0,22.428,22.411,37.96]
[1674237406360,10.0,22.428,22.411,55.54791566]
[1674237406676,10.0,22.428,22.412,17.58791566]
[1674237407089,10.0,22.426,22.412,17.58791566]
[1674237407411,10.0,22.426,22.413,20.0]
[1674237407821,10.0,22.426,22.414,17.58791566]
[1674237408031,10.0,22.428,22.414,17.58791566]
[1674237408248,10.0,22.428,22.415,20.0]
[1674237408677,10.0,22.428,22.416,35.54791566]
[1674237408988,10.0,22.428,22.417,17.58791566]
[1674237409196,10.0,22.43,22.418,17.96]
[1674237409404,203.63338197,22.47,22.418,17.96]
[1674237409405,33.42,22.444,22.419,30.0]
[1674237409622,33.42,22.444,22.42,17.96]
[1674237409814,10.0,22.443,22.422,10.0]
[1674237410034,33.43,22.442,22.423,37.96]
[1674237410372,10.0,22.443,22.424,10.0]
[1674237410672,33.41,22.457,22.426,10.0]
[1674237410884,10.0,22.456,22.428,10.0]
[1674237411072,33.41,22.455,22.429,17.96]
[1674237411388,33.41,22.455,22.43,37.58791566]
[1674237411592,33.41,22.455,22.431,27.96]
[1674237411807,112.737,22.459,22.431,27.96]
[1674237411808,10.0,22.458,22.433,10.0]
[1674237412025,33.38,22.472,22.435,6.04534425]
[1674237412251,33.38,22.472,22.437,4.92826424]
[1674237412654,10.0,22.471,22.439,10.0]
[1674237412973,10.0,22.471,22.44,113.73045662]
[1674237412974,33.39,22.47,22.44,113.73045662]
[1674237413177,33.39,22.47,22.441,10.0]
[1674237413507,10.0,22.469,22.442,17.0]
[1674237413704,33.39,22.468,22.444,10.0]
[1674237413921,10.0,22.467,22.444,10.0]
[1674237414115,33.39,22.466,22.445,103.18305145]
[1674237414331,33.39,22.466,22.446,10.0]
[1674237414541,33.39,22.466,22.447,37.96]
[1674237414757,10.0,22.465,22.448,10.0]
[1674237414962,33.39,22.466,22.449,17.96]
[1674237415177,33.39,22.466,22.449,35.54791566]
[1674237415381,108.3,22.5,22.45,33.1020616]
[1674237415382,33.38,22.472,22.45,33.1020616]
[1674237415595,10.0,22.477,22.452,10.0]
[1674237415931,33.38,22.476,22.453,55.54791566]
[1674237416329,33.38,22.476,22.454,27.58791566]
[1674237416330,10.0,22.475,22.454,27.58791566]
[1674237416538,33.38,22.474,22.455,37.96]
[1674237416748,10.0,22.473,22.455,37.96]
[1674237417078,33.38,22.472,22.455,55.54791566]
[1674237417285,10.0,22.471,22.455,55.54791566]
[1674237418002,10.0,22.471,22.443,6.12397003]
[1674237418214,33.39,22.47,22.434,4.07576596]
[1674237418549,33.39,22.47,22.435,38.2451216]
[1674237418860,10.0,22.469,22.445,17.58791566]
[1674237419077,33.39,22.468,22.445,17.58791566]
[1674237419700,10.0,22.467,22.445,17.58791566]
[1674237419912,33.39,22.466,22.445,17.58791566]
[1674237420323,33.39,22.466,22.424,10.0]
[1674237420551,33.39,22.466,22.44,17.58791566]
[1674237420552,0.96,22.465,22.44,17.58791566]
[1674237420762,0.96,22.465,22.424,10.0]
[1674237420763,10.0,22.463,22.424,10.0]
[1674237420986,27.12,22.46,22.421,16.2555463]
[1674237421194,10.0,22.458,22.424,10.0]
[1674237421388,33.41,22.457,22.424,10.0]
[1674237421719,33.41,22.457,22.426,10.0]
[1674237421720,10.0,22.456,22.426,10.0]
[1674237421909,33.41,22.455,22.426,10.0]
[1674237422119,10.0,22.454,22.428,10.0]
[1674237422329,33.41,22.453,22.428,10.0]
[1674237422556,33.41,22.453,22.429,17.58791566]
[1674237422749,10.0,22.454,22.43,10.0]
[1674237422962,33.4,22.462,22.431,4.46551948]
[1674237423188,33.4,22.462,22.431,176.19189566]
[1674237423394,117.202,22.464,22.433,135.5]
[1674237423713,117.202,22.464,22.436,14.88185057]
[1674237423929,33.39,22.466,22.438,6.87105312]
[1674237424244,33.39,22.466,22.437,37.96]
[1674237424245,33.39,22.47,22.44,10.0]
[1674237424441,33.39,22.468,22.441,37.0]
[1674237424650,10.0,22.467,22.442,10.96]
[1674237424857,33.39,22.466,22.444,10.0]
[1674237425060,10.0,22.465,22.445,37.96]
[1674237425277,33.4,22.464,22.446,10.0]
[1674237425484,10.0,22.465,22.447,37.96]
[1674237425693,10.0,22.465,22.447,55.54791566]
[1674237425905,10.0,22.465,22.448,17.58791566]
[1674237426217,33.4,22.464,22.448,17.58791566]
[1674237426647,10.0,22.463,22.447,20.0]
[1674237426855,33.4,22.462,22.444,17.58791566]
[1674237427083,10.0,22.461,22.448,17.58791566]
[1674237427291,10.0,22.461,22.444,17.58791566]
[1674237427483,33.4,22.46,22.444,17.58791566]
[1674237427695,14.11766951,22.469,22.462,43.4]
[1674237427912,4.02696287,22.495,22.462,43.4]
[1674237427913,4.02696287,22.495,22.47,6.25247471]
[1674237428128,42.02223487,22.496,22.471,5.13482]
[1674237428318,42.02223487,22.496,22.472,140.77402166]
[1674237428530,33.3,22.527,22.473,11.62398352]
[1674237428771,33.3,22.527,22.5,27.12]
[1674237428958,10.0,22.526,22.501,23.08797]
[1674237429168,10.0,22.526,22.502,25.12774]
[1674237429377,33.3,22.525,22.503,23.08752]
[1674237429598,118.5357,22.528,22.504,5.12729]
[1674237429599,33.3,22.527,22.504,5.12729]
[1674237429923,33.3,22.527,22.505,47.96]
[1674237430107,78.41,22.533,22.51,27.12]
[1674237430326,78.41,22.533,22.511,43.08569]
[1674237430535,10.0,22.532,22.512,10.0]
[1674237430745,10.0,22.532,22.513,20.96]
[1674237430952,33.3,22.531,22.514,17.0]
[1674237431278,43.29,22.532,22.515,20.96]
[1674237431476,10.0,22.532,22.516,17.0]
[1674237431689,78.41,22.533,22.517,20.0]
[1674237431903,78.41,22.533,22.518,17.0]
[1674237432330,45.12,22.533,22.519,0.96]
[1674237432538,10.0,22.54,22.521,10.0]
[1674237432870,10.0,22.54,22.522,37.96]
[1674237433092,10.0,22.54,22.523,10.0]
[1674237433298,10.0,22.54,22.524,20.0]
[1674237433512,10.0,22.54,22.525,17.96]
[1674237433713,10.0,22.54,22.525,35.15932857]
[1674237433935,33.28,22.539,22.525,35.15932857]
[1674237434124,33.28,22.539,22.526,18.15932857]
[1674237434329,33.28,22.539,22.525,17.0]
[1674237434330,10.0,22.538,22.527,17.0]
[1674237434547,33.29,22.537,22.525,17.0]
[1674237434759,33.29,22.537,22.522,18.15932857]
[1674237434965,33.29,22.533,22.5,27.12]
[1674237435186,33.29,22.533,22.513,18.15932857]
[1674237435393,10.0,22.532,22.514,10.0]
[1674237435617,33.3,22.531,22.514,10.0]
[1674237435804,33.3,22.531,22.515,18.15932857]
[1674237435805,10.0,22.53,22.515,18.15932857]
[1674237436017,10.0,22.53,22.505,10.0]
[1674237436221,33.3,22.531,22.511,18.15932857]
[1674237436432,10.0,22.538,22.512,10.0]
[1674237436433,33.29,22.537,22.512,10.0]
[1674237436654,33.29,22.533,22.511,18.15932857]
[1674237436980,32.79,22.533,22.501,10.0]
[1674237437194,32.79,22.533,22.501,18.15932857]
[1674237437195,0.96,22.532,22.501,18.15932857]
[1674237437384,33.3,22.531,22.501,18.15932857]
[1674237437589,10.0,22.53,22.502,15.12774]
[1674237437821,10.0,22.53,22.51,27.12]
[1674237438033,10.0,22.53,22.511,5.12569]
[1674237438225,10.0,22.53,22.511,23.28501857]
[1674237438437,10.0,22.53,22.513,10.0]
[1674237438655,10.0,22.532,22.514,20.0]
[1674237438863,5.0,22.532,22.515,0.96]
[1674237439073,5.0,22.532,22.515,19.11932857]
[1674237439392,33.29,22.537,22.515,19.11932857]
[1674237439393,33.29,22.537,22.516,38.15932857]
[1674237439587,33.28,22.541,22.517,0.96]
[1674237439800,33.28,22.539,22.517,39.11932857]
[1674237440008,10.0,22.538,22.518,28.15932857]
[1674237440218,33.29,22.537,22.519,0.96]
[1674237440448,10.0,22.536,22.519,19.11932857]
[1674237440759,10.0,22.536,22.52,18.15932857]
[1674237440973,33.29,22.535,22.52,18.15932857]
[1674237441397,11.0,22.534,22.52,18.15932857]
[1674237442555,11.0,22.534,22.501,10.0]
[1674237442764,11.0,22.534,22.512,25.49441419]
[1674237443071,1.0,22.534,22.514,10.0]
[1674237443291,1.0,22.534,22.516,6.18508218]
[1674237443501,1.0,22.534,22.517,15.12433]
[1674237443691,1.0,22.534,22.52,26.91]
[1674237443902,1.0,22.534,22.522,16.89553365]
[1674237444106,1.0,22.534,22.524,4.65946038]
[1674237444433,33.26,22.558,22.534,1.0]
[1674237444653,10.0,22.559,22.536,1.0]
[1674237444854,33.26,22.558,22.537,5.11978]
[1674237445073,10.0,22.56,22.54,10.0]
[1674237445388,10.0,22.56,22.543,10.0]
[1674237445576,10.0,22.56,22.544,20.96]
[1674237445788,10.0,22.56,22.544,80.12471895]
[1674237446003,10.0,22.56,22.545,69.16471895]
[1674237446213,10.0,22.56,22.546,20.96]
[1674237446435,10.0,22.56,22.546,184.10328362]
[1674237446633,10.0,22.56,22.547,69.16471895]
[1674237446840,7.5,22.56,22.548,0.96]
[1674237447169,7.5,22.56,22.549,126.86349104]
[1674237447497,7.5,22.56,22.551,10.0]
[1674237447805,7.5,22.56,22.552,137.82281104]
[1674237448118,7.5,22.56,22.553,116.86258104]
[1674237448309,7.5,22.56,22.555,10.0]
[1674237448521,33.23,22.576,22.557,10.0]
[1674237448744,10.0,22.577,22.56,7.5]
[1674237448745,9.6,22.577,22.56,7.5]
[1674237448953,33.23,22.576,22.561,0.96]
[1674237449375,43.21,22.588,22.562,89.86605305]
[1674237449692,43.21,22.588,22.563,122.42097996]
[1674237449693,3.0,22.58,22.563,122.42097996]
[1674237449896,3.0,22.58,22.564,5.11365]
[1674237450092,3.0,22.58,22.565,20.96]
[1674237450308,10.0,22.579,22.565,81.0368116]
[1674237450624,10.0,22.579,22.565,0.00657002]
[1674237450834,33.23,22.578,22.541,4.50696913]
[1674237451153,33.23,22.578,22.546,10.0]
[1674237451154,10.0,22.577,22.546,10.0]
[1674237451367,10.0,22.575,22.548,10.0]
[1674237451574,33.23,22.574,22.549,5.11706]
[1674237451778,33.23,22.574,22.541,5.31111931]
[1674237451985,33.23,22.574,22.531,7.58453868]
[1674237451986,0.96,22.573,22.531,7.58453868]
[1674237452209,10.0,22.571,22.536,10.0]
[1674237452517,33.24,22.57,22.537,5.11978]
[1674237452952,10.0,22.568,22.537,5.11978]
[1674237453167,33.24,22.567,22.526,10.0]
[1674237453355,10.0,22.566,22.537,36.31865714]
[1674237453574,10.0,22.564,22.529,35.33073193]
[1674237453777,33.25,22.563,22.53,18.15932857]
[1674237453990,27.12,22.56,22.51,27.12]
[1674237454322,10.0,22.557,22.527,18.15932857]
[1674237454529,34.22,22.556,22.527,18.15932857]
[1674237454846,57.97576951,22.556,22.516,18.15932857]
[1674237455047,34.22,22.556,22.517,5.12433]
[1674237455263,30.23010773,22.556,22.518,35.33073193]
[1674237455461,10.0,22.555,22.519,15.12387]
[1674237455672,33.26,22.554,22.52,5.12365]
[1674237455882,33.26,22.554,22.52,23.28297857]
[1674237456097,27.12,22.55,22.515,35.33073193]
[1674237456311,27.12,22.55,22.51,27.12]
[1674237456312,10.0,22.548,22.512,18.15932857]
[1674237456506,33.27,22.547,22.513,11.51428063]
[1674237456721,33.27,22.547,22.516,18.15932857]
[1674237456950,10.0,22.546,22.518,10.0]
[1674237457163,33.28,22.545,22.518,15.1241]
[1674237457375,10.0,22.544,22.519,18.15932857]
[1674237457584,10.0,22.544,22.52,5.12365]
[1674237457892,10.0,22.544,22.521,28.15932857]
[1674237458106,10.0,22.548,22.522,10.69561526]
[1674237458292,10.0,22.548,22.524,14.09212502]
[1674237458504,10.0,22.548,22.525,20.0]
[1674237458718,10.0,22.548,22.526,5.12228]
[1674237458932,10.0,22.548,22.528,10.0]
[1674237459159,10.0,22.548,22.529,6.0816]
[1674237459363,10.0,22.56,22.529,6.0816]
[1674237459364,10.0,22.555,22.531,5.21015929]
[1674237459564,10.0,22.555,22.534,10.0]
[1674237459778,10.0,22.555,22.535,26.08024]
[1674237460197,10.0,22.553,22.535,6.08024]
[1674237460408,10.0,22.553,22.535,18.15932857]
[1674237460940,10.0,22.555,22.535,18.15932857]
[1674237461265,10.0,22.555,22.536,15.12001]
[1674237461453,10.0,22.555,22.537,25.11978]
[1674237461660,10.0,22.555,22.538,10.0]
[1674237461872,10.0,22.555,22.538,28.15932857]
[1674237462077,10.0,22.555,22.539,19.11932857]
[1674237462293,10.0,22.56,22.54,20.0]
[1674237462502,10.0,22.56,22.541,0.96]
[1674237462708,10.0,22.56,22.541,19.11932857]
[1674237462934,10.0,22.56,22.542,18.15932857]
[1674237463140,10.0,22.56,22.54,5.1191]
[1674237463356,33.26,22.556,22.542,36.31865714]
[1674237463568,10.0,22.555,22.542,18.15932857]
[1674237463974,33.26,22.556,22.542,18.15932857]
[1674237464310,10.0,22.56,22.542,18.15932857]
[1674237464503,33.26,22.557,22.531,10.0]
[1674237464727,10.0,22.556,22.536,18.15932857]
[1674237465045,33.26,22.555,22.537,0.96]
[1674237465230,10.0,22.56,22.537,0.96]
[1674237465575,10.0,22.557,22.538,5.11955]
[1674237465774,10.0,22.557,22.539,0.96]
[1674237465976,10.0,22.557,22.539,20.96]
[1674237466195,10.0,22.557,22.539,39.11932857]
[1674237466608,0.96,22.556,22.522,10.0]
[1674237466808,10.0,22.554,22.523,5.12296]
[1674237467147,10.0,22.552,22.525,10.0]
[1674237467333,33.27,22.551,22.525,10.0]
[1674237467548,33.27,22.551,22.526,18.15932857]
[1674237467881,33.27,22.551,22.523,5.12296]
[1674237468084,33.27,22.551,22.515,18.15932857]
[1674237468295,10.0,22.55,22.515,18.15932857]
[1674237468505,34.23,22.549,22.524,18.15932857]
[1674237468922,10.0,22.548,22.524,18.15932857]
[1674237469133,34.23,22.547,22.503,6.95403736]
[1674237469446,34.23,22.547,22.512,18.15932857]
[1674237469447,27.0,22.546,22.512,18.15932857]
[1674237469641,33.28,22.545,22.512,18.15932857]
[1674237469855,0.96,22.544,22.512,18.15932857]
[1674237470064,10.0,22.542,22.512,18.15932857]
[1674237470297,33.28,22.541,22.512,18.15932857]
[1674237470490,10.0,22.542,22.513,10.41189605]
[1674237470728,10.0,22.542,22.514,5.12501]
[1674237470958,10.0,22.542,22.516,10.0]
[1674237471271,33.28,22.545,22.518,7.52300317]
[1674237471480,10.0,22.546,22.52,4.91188419]
[1674237471664,10.0,22.546,22.522,10.0]
[1674237471878,10.0,22.546,22.523,20.0]
[1674237472094,10.0,22.546,22.524,10.96]
[1674237472318,10.0,22.546,22.525,20.0]
[1674237472520,10.0,22.546,22.526,0.96]
[1674237472733,43.27,22.546,22.526,0.96]
[1674237472950,33.27,22.546,22.526,19.11932857]
[1674237473270,10.0,22.545,22.527,56.31865714]
[1674237473480,10.0,22.543,22.527,38.15932857]
[1674237473787,10.0,22.543,22.528,18.15932857]
[1674237473984,10.0,22.543,22.529,0.96]
[1674237474190,10.0,22.543,22.528,18.15932857]
[1674237474410,10.0,22.543,22.53,18.15932857]
[1674237475241,10.0,22.546,22.531,20.0]
[1674237475453,10.0,22.546,22.527,20.0]
[1674237475454,10.0,22.546,22.528,28.15932857]
[1674237475660,10.0,22.546,22.532,0.96]
[1674237475888,10.0,22.546,22.532,18.15932857]
[1674237476083,10.0,22.546,22.533,39.11932857]
[1674237476294,10.0,22.546,22.534,20.0]
[1674237476505,10.0,22.546,22.534,38.15932857]
[1674237476825,43.27,22.546,22.535,18.15932857]
[1674237477041,43.27,22.546,22.536,20.0]
[1674237477252,10.0,22.546,22.536,20.0]
[1674237477885,10.0,22.546,22.51,27.12]
[1674237478111,10.0,22.544,22.531,18.15932857]
[1674237478308,10.0,22.542,22.531,18.15932857]
[1674237478515,33.28,22.541,22.517,5.12433]
[1674237478725,10.0,22.54,22.518,18.15932857]
[1674237478920,10.0,22.538,22.518,18.15932857]
[1674237480848,10.0,22.538,22.519,20.0]
[1674237481038,10.0,22.538,22.502,10.0]
[1674237481039,10.0,22.536,22.517,18.15932857]
[1674237481254,33.29,22.535,22.505,10.0]
[1674237481583,10.0,22.534,22.508,18.15932857]
[1674237481771,10.0,22.532,22.508,18.15932857]
[1674237482193,33.3,22.531,22.497,5.79752715]
[1674237482402,33.3,22.531,22.508,18.15932857]
[1674237482613,33.3,22.531,22.491,5.01465767]
[1674237482835,33.3,22.531,22.492,23.28934857]
[1674237483033,10.0,22.53,22.494,10.0]
[1674237483244,10.0,22.53,22.501,4.41355759]
[1674237483460,10.0,22.53,22.502,5.12774]
[1674237483679,10.0,22.532,22.502,5.12774]
[1674237483890,10.0,22.532,22.503,10.0]
[1674237484094,10.0,22.532,22.504,10.30269811]
[1674237484311,10.0,22.532,22.505,26.08706]
[1674237484630,10.0,22.532,22.506,15.12683]
[1674237484820,10.0,22.532,22.507,20.0]
[1674237485031,10.0,22.532,22.507,30.65932857]
[1674237485236,33.3,22.531,22.508,18.15932857]
[1674237485552,33.3,22.531,22.509,10.0]
[1674237485776,33.29,22.533,22.509,10.0]
[1674237485994,33.29,22.533,22.51,18.15932857]
[1674237486203,10.0,22.554,22.51,18.15932857]
[1674237486204,43.27,22.547,22.511,165.5]
[1674237486394,43.27,22.549,22.512,10.91206533]
[1674237486608,43.27,22.549,22.514,4.69769783]
[1674237486933,43.27,22.549,22.516,10.0]
[1674237487140,10.0,22.549,22.52,27.12]
[1674237487356,33.27,22.548,22.522,7.27358354]
[1674237487553,33.27,22.548,22.523,26.08296]
[1674237487764,43.27,22.549,22.524,10.0]
[1674237487979,43.27,22.549,22.525,6.08251]
[1674237488193,43.27,22.549,22.526,25.12228]
[1674237488496,43.27,22.549,22.527,0.96]
[1674237488712,43.27,22.549,22.527,19.11932857]
[1674237488927,10.0,22.548,22.528,38.15932857]
[1674237489127,10.0,22.548,22.529,0.96]
[1674237489339,10.0,22.548,22.529,57.27865714]
[1674237489555,10.0,22.548,22.53,28.15932857]
[1674237489758,10.0,22.548,22.531,20.96]
[1674237489967,10.0,22.548,22.531,39.11932857]
[1674237490177,10.0,22.548,22.526,5.12228]
[1674237490402,33.27,22.547,22.526,18.15932857]
[1674237491019,10.0,22.546,22.527,10.0]
[1674237491444,10.0,22.546,22.528,19.11932857]
[1674237491870,10.0,22.546,22.529,18.15932857]
[1674237492076,10.0,22.546,22.53,0.96]
[1674237492515,10.0,22.546,22.531,18.15932857]
[1674237492824,33.26,22.556,22.532,20.96]
[1674237493012,33.26,22.556,22.532,26.08092]
[1674237493226,33.26,22.556,22.533,23.28001857]
[1674237493450,43.25,22.559,22.534,10.52803629]
[1674237493645,10.0,22.559,22.535,25.12024]
[1674237493853,10.0,22.559,22.537,10.0]
[1674237494087,153.2411,22.561,22.538,20.96]
[1674237494399,119.9911,22.561,22.539,5.11933]
[1674237494718,10.0,22.557,22.54,20.96]
[1674237494929,10.0,22.557,22.54,39.17174452]
[1674237495115,10.0,22.557,22.54,20.96]
[1674237495331,10.0,22.557,22.541,18.21174452]
[1674237495539,10.0,22.557,22.521,10.0]
[1674237495750,33.26,22.556,22.537,48.02304542]
[1674237496072,10.0,22.555,22.521,10.0]
[1674237496399,33.26,22.554,22.522,5.12319]
[1674237496794,33.26,22.554,22.523,10.0]
[1674237497001,10.0,22.553,22.524,5.12274]
[1674237497217,33.26,22.552,22.525,20.0]
[1674237497433,33.26,22.552,22.525,25.12251]
[1674237497854,10.0,22.551,22.525,25.12251]
[1674237498074,33.27,22.55,22.525,20.0]
[1674237498271,10.0,22.549,22.524,20.0]
[1674237498481,10.0,22.547,22.524,20.0]
[1674237498692,33.27,22.546,22.524,20.0]
[1674237498903,33.27,22.546,22.525,10.0]
[1674237499115,33.27,22.546,22.526,20.0]
[1674237499340,10.0,22.547,22.526,20.0]
[1674237499543,33.27,22.548,22.527,10.96]
[1674237499751,33.27,22.548,22.529,10.0]
[1674237499964,33.27,22.548,22.53,0.96]
[1674237500177,10.0,22.551,22.516,10.0]
[1674237500178,33.27,22.55,22.516,10.0]
[1674237500840,10.0,22.549,22.516,10.0]
[1674237501022,33.27,22.548,22.516,10.0]
[1674237501352,10.0,22.547,22.516,10.0]
[1674237501556,33.27,22.546,22.516,10.0]
[1674237501771,10.0,22.545,22.516,10.0]
[1674237501975,34.24,22.544,22.516,10.0]
[1674237502708,10.0,22.543,22.516,10.0]
[1674237502915,34.24,22.542,22.51,27.12856708]
[1674237503350,33.28,22.542,22.51,27.12856708]
[1674237503552,17.0,22.541,22.51,27.12856708]
[1674237503877,17.0,22.541,22.509,17.46149519]
[1674237503878,10.0,22.539,22.509,10.0]
[1674237504070,33.29,22.538,22.509,9.5]
[1674237504411,10.0,22.537,22.509,9.5]
[1674237504608,34.25,22.536,22.509,9.5]
[1674237504933,10.0,22.535,22.509,9.5]
[1674237505141,34.25,22.534,22.509,9.5]
[1674237505353,34.25,22.534,22.506,10.0]
[1674237505666,34.25,22.534,22.503,17.12856708]
[1674237505858,27.0,22.533,22.503,17.12856708]
[1674237506064,34.25,22.532,22.503,17.12856708]
[1674237506406,10.0,22.529,22.503,17.12856708]
[1674237506618,34.26,22.528,22.503,17.12856708]
[1674237506803,10.0,22.527,22.503,17.12856708]
[1674237507014,10.0,22.525,22.503,17.12856708]
[1674237507225,34.27,22.524,22.503,17.12856708]
[1674237507441,34.27,22.524,22.489,10.0]
[1674237507657,34.27,22.524,22.497,17.12856708]
[1674237507862,27.0,22.523,22.489,10.0]
[1674237508065,34.27,22.522,22.489,10.0]
[1674237508498,33.31,22.522,22.49,44.24856708]
[1674237508694,33.31,22.522,22.492,10.0]
[1674237508901,10.0,22.523,22.493,5.1298]
[1674237509129,33.31,22.522,22.493,22.25836708]
[1674237509336,10.0,22.521,22.494,37.12856708]
[1674237509548,10.0,22.521,22.493,5.1298]
[1674237509549,33.31,22.52,22.489,10.0]
[1674237509759,10.0,22.519,22.489,10.0]
[1674237510075,34.27,22.518,22.474,10.0]
[1674237510269,146.6984,22.518,22.48,17.12856708]
[1674237510479,10.0,22.516,22.474,10.0]
[1674237510718,27.12,22.51,22.482,17.12856708]
[1674237510931,33.33,22.509,22.474,10.0]
[1674237511127,0.96,22.508,22.475,17.12856708]
[1674237511341,33.33,22.507,22.476,5.13368]
[1674237511545,33.32,22.515,22.476,5.13368]
[1674237511879,33.32,22.515,22.477,10.0]
[1674237511880,10.96,22.514,22.477,10.0]
[1674237512090,60.32,22.513,22.477,10.0]
[1674237512271,0.96,22.512,22.477,10.0]
[1674237512481,33.33,22.511,22.477,10.0]
[1674237512709,10.0,22.51,22.477,27.12856708]
[1674237512911,33.33,22.509,22.478,5.13322]
[1674237513135,33.33,22.509,22.48,27.12]
[1674237513342,23.48407121,22.559,22.49,27.12]
[1674237513343,33.32,22.515,22.49,27.12]
[1674237513668,145.7384,22.518,22.491,10.96]
[1674237513872,112.4284,22.518,22.492,5.13002]
[1674237514084,112.4284,22.518,22.493,0.96]
[1674237514286,112.4284,22.518,22.494,5.12957]
[1674237514608,10.0,22.517,22.495,20.0]
[1674237514822,33.32,22.516,22.495,20.0]
[1674237515020,10.0,22.515,22.493,0.96]